lending/lending_fUSD_20251020
["ID","MTS","AMOUNT","RATE_DAILY","PERIOD"]
[391912586,1760979039014,-557.0,0.00033466,2]
[391912587,1760979039023,-1322.42938185,0.00033466,2]
[391912588,1760979039036,-254.98638715,0.00033466,2]
[391912589,1760979039047,-1013.584231,0.00033466,2]
[391912590,1760979039061,-2604.57321852,0.00033466,2]
[391912591,1760979039080,-2203.79455433,0.00033466,2]
[391912733,1760979040517,-4196.94108416,0.00033466,2]
[391912739,1760979040573,-9954.62348864,0.00033466,2]
[391912746,1760979040627,-554.0,0.00033466,2]
[391912753,1760979040682,-132977.88260459,0.00033466,2]
[391912755,1760979040691,-500.0,0.00033473,5]
[391912757,1760979040701,-500.0,0.00033488,7]
[391912759,1760979040710,-14240.7506604,0.0003349,3]
[391912761,1760979040720,-5680.68056123,0.000335,120]
[391912763,1760979040729,-207.52113221,0.000335,120]
[391912764,1760979040738,-695.57247713,0.000335,120]
[391912766,1760979040748,-475.93135235,0.000335,120]
[391912768,1760979040758,-153.0,0.00033501,90]
[391912770,1760979040768,-153.0,0.00033501,90]
[391912772,1760979040777,-153.0,0.00033501,90]
[391912775,1760979040787,-153.0,0.00033501,90]
[391912776,1760979040796,-153.0,0.00033501,90]
[391912779,1760979040806,-153.0,0.00033501,90]
[391912781,1760979040815,-153.0,0.00033501,90]
[391912782,1760979040824,-153.0,0.00033501,90]
[391912784,1760979040834,-153.0,0.00033501,90]
[391912786,1760979040843,-153.0,0.00033511,90]
[391912788,1760979040852,-153.0,0.00033511,90]
[391912790,1760979040863,-153.0,0.00033511,90]
[391912792,1760979040872,-153.0,0.00033511,90]
[391912794,1760979040882,-153.0,0.00033511,90]
[391912797,1760979040894,-500.0,0.00033514,7]
[391912799,1760979040904,-153.0,0.00033533,90]
[391912801,1760979040914,-153.0,0.00033533,90]
[391912803,1760979040924,-153.0,0.00033533,90]
[391912805,1760979040934,-153.0,0.00033533,90]
[391912807,1760979040945,-153.0,0.00033533,90]
[391912809,1760979040955,-153.0,0.00033533,90]
[391912811,1760979040964,-153.0,0.00033533,90]
[391912812,1760979040973,-153.0,0.00033533,90]
[391912814,1760979040982,-153.0,0.00033533,90]
[391912816,1760979040991,-270.78505755,0.00033535,7]
[391912818,1760979041001,-153.0,0.00033548,90]
[391912820,1760979041010,-153.0,0.00033548,90]
[391912822,1760979041019,-153.0,0.00033548,90]
[391912825,1760979041030,-153.0,0.00033548,90]
[391912826,1760979041040,-153.0,0.00033548,90]
[391912829,1760979041049,-172.60550224,0.0003355,2]
[391912830,1760979041062,-1410.71,0.00033561,30]
[391912833,1760979041072,-500.0,0.00033572,7]
[391912835,1760979041081,-153.0,0.00033584,90]
[391912837,1760979041091,-153.0,0.00033584,90]
[391912839,1760979041101,-153.0,0.00033584,90]
[391912840,1760979041110,-153.0,0.00033584,90]
[391912843,1760979041120,-153.0,0.00033584,90]
[391912844,1760979041130,-153.0,0.00033584,90]
[391912847,1760979041140,-153.0,0.00033584,90]
[391912849,1760979041150,-153.0,0.00033584,90]
[391912851,1760979041159,-153.0,0.00033584,90]
[391912853,1760979041168,-153.0,0.0003359,90]
[391912855,1760979041177,-153.0,0.0003359,90]
[391912857,1760979041186,-153.0,0.0003359,90]
[391912858,1760979041196,-153.0,0.0003359,90]
[391912861,1760979041206,-153.0,0.0003359,90]
[391912863,1760979041216,-153.0,0.00033621,90]
[391912864,1760979041225,-153.0,0.00033621,90]
[391912867,1760979041234,-153.0,0.00033621,90]
[391912869,1760979041244,-153.0,0.00033621,90]
[391912871,1760979041254,-153.0,0.00033621,90]
[391912873,1760979041264,-153.0,0.00033621,90]
[391912875,1760979041274,-153.0,0.00033621,90]
[391912877,1760979041288,-153.0,0.00033621,90]
[391912879,1760979041297,-153.0,0.00033621,90]
[391912881,1760979041307,-153.0,0.00033629,90]
[391912883,1760979041317,-153.0,0.00033629,90]
[391912885,1760979041326,-153.0,0.00033629,90]
[391912887,1760979041336,-153.0,0.00033629,90]
[391912889,1760979041345,-153.0,0.00033629,90]
[391912891,1760979041354,-168.0,0.00033659,2]
[391912893,1760979041363,-1410.71,0.00033698,30]
[391912895,1760979041373,-168.0,0.00033756,2]
[391912897,1760979041383,-500.0,0.00033833,7]
[391912899,1760979041393,-1410.71,0.00033835,30]
[391912901,1760979041403,-752.0,0.00033858,2]
[391912903,1760979041412,-1410.71,0.00033972,30]
[391912905,1760979041422,-393776.66252113,0.00034,2]
[391912907,1760979041434,-337.374,0.00034,2]
[391912910,1760979041453,-4199.7,0.00034,2]
[391913105,1760979043475,-1184.0,0.00033472,2]
[391913107,1760979043484,-7450.6876837,0.00034,2]
[391913109,1760979043496,-21727.32043356,0.00034,2]
[391913111,1760979043508,-3367.5727368,0.00034,2]
[391913124,1760979043634,-254.39513532,0.00034,2]
[391913127,1760979043646,-275.919001,0.00034,2]
[391913129,1760979043657,-418.07765348,0.00034,2]
[391913131,1760979043668,-1081.0,0.00034,2]
[391913134,1760979043693,-423.95581672,0.00034,2]
[391913137,1760979043704,-1325.45,0.00034,2]
[391913142,1760979043746,-38884.76808034,0.00034,2]
[391913149,1760979043801,-11067.00000001,0.00034,2]
[391913257,1760979046548,-153.0,0.00033471,90]
[391913259,1760979046557,-6096.0,0.00034,2]
[391913260,1760979046569,-935.16873761,0.00034,2]
[391913261,1760979046581,-6142.20239201,0.00034,2]
[391913262,1760979046602,-2764.5,0.00034,2]
[391913263,1760979046614,-55371.23162651,0.00034,2]
[391913264,1760979046657,-2816.85600002,0.00034,2]
[391913265,1760979046668,-1915.89664227,0.00034,2]
[391913266,1760979046718,-153.0,0.00033471,90]
[391913267,1760979046727,-182.77407746,0.00034,2]
[391913268,1760979046739,-1895.77238277,0.00034,2]
[391913269,1760979046751,-4217.9971371,0.00034,2]
[391913270,1760979046773,-6971.0,0.00034,2]
[391913271,1760979046824,-420.98,0.00034,2]
[391913272,1760979046835,-5438.20551645,0.00034,2]
[391913273,1760979046848,-649.12095001,0.00034,2]
[391913278,1760979062248,200.0,0.00034346,120]
[391913286,1760979124225,500.0,0.00014999,2]
[391913287,1760979124493,500.0,0.00014999,2]
[391913288,1760979124754,500.0,0.00014999,2]
[391913289,1760979125004,245.29,0.00014999,2]
[391913290,1760979126974,300.0,0.00034346,30]
[391913291,1760979128360,520.0,0.00034346,30]
[391913292,1760979128619,311.1,0.00034346,30]
[391913293,1760979129022,500.0,0.00034346,30]
[391913294,1760979129322,311.1,0.00034346,30]
[391913295,1760979129713,500.0,0.00034346,30]
[391913296,1760979130159,500.0,0.00034346,30]
[391913297,1760979130781,500.0,0.00034346,30]
[391913298,1760979130841,500.0,0.00034346,30]
[391913299,1760979131467,500.0,0.00034346,30]
[391913300,1760979131546,500.0,0.00034346,30]
[391913301,1760979132167,500.0,0.00034346,30]
[391913302,1760979132257,500.0,0.00034346,30]
[391913303,1760979132939,500.0,0.00034346,30]
[391913304,1760979133442,500.0,0.00034346,30]
[391913305,1760979133613,500.0,0.00034346,30]
[391913306,1760979134339,500.0,0.00034346,30]
[391913307,1760979134447,500.0,0.00034346,30]
[391913308,1760979134818,500.0,0.00034346,30]
[391913309,1760979135351,500.0,0.00034346,30]
[391913310,1760979136089,500.0,0.00034346,30]
[391913311,1760979136128,500.0,0.00034346,30]
[391913312,1760979136771,500.0,0.00034346,30]
[391913313,1760979136902,500.0,0.00034346,30]
[391913314,1760979137098,500.0,0.00034346,30]
[391913315,1760979137737,500.0,0.00034346,30]
[391913316,1760979139169,500.0,0.00034346,30]
[391913317,1760979139732,500.0,0.00034346,30]
[391913318,1760979140034,500.0,0.00034346,30]
[391913319,1760979140399,500.0,0.00034346,30]
[391913320,1760979140746,500.0,0.00034346,30]
[391913321,1760979141088,500.0,0.00034346,30]
[391913322,1760979141456,500.0,0.00034346,30]
[391913323,1760979141787,500.0,0.00034346,30]
[391913324,1760979142147,500.0,0.00034346,30]
[391913325,1760979142489,500.0,0.00034346,30]
[391913326,1760979143729,500.0,0.00034346,30]
[391913327,1760979144456,500.0,0.00034346,30]
[391913328,1760979145119,500.0,0.00034346,30]
[391913329,1760979145185,500.0,0.00034346,30]
[391913330,1760979145892,500.0,0.00034346,30]
[391913331,1760979146590,500.0,0.00034346,30]
[391913332,1760979147291,500.0,0.00034346,30]
[391913333,1760979148339,500.0,0.00034346,30]
[391913335,1760979148779,500.0,0.00034346,30]
[391913336,1760979148845,500.0,0.00034346,30]
[391913337,1760979149583,500.0,0.00034346,30]
[391913338,1760979149941,500.0,0.00034346,30]
[391913339,1760979150325,500.0,0.00034346,30]
[391913340,1760979151020,500.0,0.00034346,30]
[391913341,1760979151690,500.0,0.00034346,30]
[391913342,1760979151728,500.0,0.00034346,30]
[391913343,1760979152393,500.0,0.00034346,30]
[391913344,1760979153594,500.0,0.00034346,30]
[391913345,1760979154307,500.0,0.00034346,30]
[391913346,1760979154996,500.0,0.00034346,30]
[391913347,1760979156603,500.0,0.00034346,30]
[391913348,1760979157886,500.0,0.00034346,30]
[391913349,1760979159009,500.0,0.00034346,30]
[391913350,1760979159705,500.0,0.00034346,30]
[391913352,1760979161415,500.0,0.00034346,30]
[391913353,1760979163257,500.0,0.00034346,30]
[391913359,1760979166788,151.0,0.00034346,30]
[391913360,1760979166997,600.0,0.00034346,30]
[391913361,1760979167718,600.0,0.00034346,30]
[391913362,1760979167872,151.0,0.00034346,30]
[391913363,1760979168548,151.0,0.00034346,30]
[391913364,1760979169254,151.0,0.00034346,30]
[391913365,1760979175773,151.0,0.00034346,30]
[391913366,1760979176465,151.0,0.00034346,30]
[391913367,1760979177153,151.0,0.00034346,30]
[391913368,1760979178389,151.0,0.00034346,30]
[391913369,1760979179098,151.0,0.00034346,30]
[391913370,1760979181615,151.0,0.00034346,30]
[391913372,1760979182294,151.0,0.00034346,30]
[391913377,1760979224339,181.81284955,0.00030137,120]
[391913379,1760979246504,2500.0,0.00028543,120]
[391913389,1760979362469,200.0,0.00034346,120]
[391913394,1760979426638,201.12765535,0.00034346,30]
[391913395,1760979427127,257.59059836,0.00034346,30]
[391913396,1760979427373,300.0,0.00028433,120]
[391913401,1760979435988,6888.0,0.00034346,30]
[391913403,1760979436629,500.0,0.00034346,30]
[391913404,1760979437345,500.0,0.00034346,30]
[391913406,1760979438427,7142.856,0.00034346,30]
[391913407,1760979439078,7407.141672,0.00034346,30]
[391913408,1760979439802,7681.20591386,0.00034346,30]
[391913409,1760979441375,500.0,0.00034346,30]
[391913410,1760979441774,7965.41053268,0.00034346,30]
[391913411,1760979443133,500.0,0.00034346,30]
[391913412,1760979443815,500.0,0.00034346,30]
[391913413,1760979444345,8260.13072239,0.00034346,30]
[391913414,1760979444503,500.0,0.00034346,30]
[391913415,1760979445219,500.0,0.00034346,30]
[391913416,1760979445932,500.0,0.00034346,30]
[391913417,1760979446643,500.0,0.00034346,30]
[391913418,1760979447400,500.0,0.00034346,30]
[391913419,1760979448210,500.0,0.00034346,30]
[391913420,1760979448800,500.0,0.00034346,30]
[391913421,1760979449995,500.0,0.00034346,30]
[391913422,1760979450809,500.0,0.00034346,30]
[391913423,1760979454056,500.0,0.00034346,30]
[391913424,1760979455178,500.0,0.00034346,30]
[391913425,1760979455911,500.0,0.00034346,30]
[391913426,1760979456618,500.0,0.00034346,30]
[391913427,1760979457772,500.0,0.00034346,30]
[391913428,1760979458819,500.0,0.00034346,30]
[391913429,1760979459502,500.0,0.00034346,30]
[391913430,1760979460234,500.0,0.00034346,30]
[391913464,1760979992144,150.0,0.0003435,120]
[391913465,1760980027298,500.0,0.0003435,30]
[391913466,1760980027985,500.0,0.0003435,30]
[391913467,1760980029646,500.0,0.0003435,30]
[391913468,1760980030339,500.0,0.0003435,30]
[391913469,1760980034110,500.0,0.0003435,30]
[391913470,1760980034878,500.0,0.0003435,30]
[391913471,1760980035601,500.0,0.0003435,30]
[391913472,1760980036323,500.0,0.0003435,30]
[391913473,1760980037033,500.0,0.0003435,30]
[391913474,1760980037977,273.52,0.00013699,2]
[391913475,1760980038332,500.0,0.0003435,30]
[391913477,1760980039038,500.0,0.0003435,30]
[391913478,1760980039773,500.0,0.0003435,30]
[391913482,1760980041328,500.0,0.0003435,30]
[391913484,1760980042606,500.0,0.0003435,30]
[391913486,1760980048300,150.0,0.0003435,120]
[391913487,1760980060244,150.0,0.0003435,120]
[391913519,1760980231519,-250.0,0.00017,2]
[391913520,1760980231531,-1338.93270527,0.000187,2]
[391913521,1760980231541,-250.0,0.000187,2]
[391913522,1760980231551,-273.52,0.00020187,2]
[391913523,1760980231561,-579.7347067,0.00025673,2]
[391913524,1760980231572,-150.0,0.00025892,2]
[391913525,1760980231583,-273.52,0.00026676,2]
[391913526,1760980231593,-711.0,0.000297,5]
[391913527,1760980231603,-1099.12503236,0.0003,2]
[391913528,1760980231613,-500.0,0.00030378,7]
[391913529,1760980231622,-500.0,0.00030409,7]
[391913530,1760980231632,-500.0,0.00030436,7]
[391913531,1760980231646,-153.0,0.00030599,30]
[391913532,1760980231656,-153.0,0.00030599,30]
[391913533,1760980231667,-153.0,0.00030611,30]
[391913534,1760980231677,-153.0,0.00030646,30]
[391913535,1760980231687,-153.0,0.00030646,30]
[391913536,1760980231697,-153.0,0.00030651,30]
[391913537,1760980231706,-1600.0,0.00030678,2]
[391913538,1760980231716,-300.0,0.00030679,2]
[391913539,1760980231727,-400.0,0.00030679,2]
[391913540,1760980231737,-400.0,0.00030679,2]
[391913541,1760980231747,-153.0,0.0003068,30]
[391913542,1760980231757,-153.0,0.0003068,30]
[391913543,1760980231766,-153.0,0.00030716,30]
[391913544,1760980231776,-500.0,0.00030788,7]
[391913545,1760980231786,-838.0,0.00030871,2]
[391913546,1760980231795,-150.00000001,0.00030871,7]
[391913547,1760980231805,-280.76772225,0.00030871,7]
[391913548,1760980231815,-150.0,0.00030871,7]
[391913549,1760980231825,-199.99635652,0.00030871,7]
[391913550,1760980231835,-150.00000001,0.00030871,7]
[391913552,1760980231845,-500.0,0.00031141,7]
[391913554,1760980231854,-500.0,0.00031188,7]
[391913556,1760980231863,-500.0,0.0003128,7]
[391913558,1760980231872,-500.0,0.00031354,7]
[391913560,1760980231881,-6440.0,0.00031468,2]
[391913562,1760980231891,-2591.0,0.00031468,2]
[391913564,1760980231901,-2751.0,0.00031492,120]
[391913566,1760980231911,-188.95,0.00031678,2]
[391913568,1760980231923,-500.0,0.00031827,7]
[391913570,1760980231933,-960.89,0.00032011,2]
[391913572,1760980231943,-321.39943934,0.00032048,30]
[391913574,1760980231954,-171.15,0.00032057,2]
[391913577,1760980231965,-277.35679052,0.00032081,2]
[391913579,1760980231975,-1000.0,0.000321,2]
[391913581,1760980231985,-200.0,0.00032111,2]
[391913583,1760980231995,-154.098,0.00032111,31]
[391913585,1760980232005,-152.0,0.00032167,3]
[391913587,1760980232014,-500.0,0.00032289,7]
[391913590,1760980232024,-346.0,0.00032405,7]
[391913592,1760980232038,-475.11,0.00032542,2]
[391913594,1760980232048,-695.75,0.00032542,2]
[391913596,1760980232057,-475.11,0.00032542,2]
[391913598,1760980232067,-250.0,0.00032581,7]
[391913600,1760980232076,-163.42277425,0.000326,120]
[391913602,1760980232086,-273.29354906,0.000326,120]
[391913604,1760980232095,-618.60867064,0.000326,120]
[391913606,1760980232105,-174.98483615,0.000326,120]
[391913608,1760980232115,-5796.51637047,0.000326,120]
[391913611,1760980232124,-500.0,0.0003261,3]
[391913613,1760980232135,-542.91921237,0.0003263,30]
[391913615,1760980232144,-500.0,0.00032703,7]
[391913617,1760980232154,-500.0,0.0003275,7]
[391913619,1760980232163,-190.42370566,0.0003275,7]
[391913621,1760980232182,-309.57629434,0.0003275,7]
[391913623,1760980232192,-1000.0,0.00032765,2]
[391913625,1760980232201,-314.83875983,0.00032766,7]
[391913627,1760980232211,-542.91921237,0.00032767,30]
[391913630,1760980232221,-197.0,0.00032769,2]
[391913631,1760980232230,-151.0,0.00032877,30]
[391913633,1760980232240,-542.91921237,0.00032904,30]
[391913635,1760980232250,-346.0,0.00032976,2]
[391913637,1760980232260,-542.91921237,0.00033014,30]
[391913640,1760980232270,-560.0,0.00033042,2]
[391913642,1760980232279,-200.0,0.00033042,3]
[391913643,1760980232291,-132.02373398,0.0003309,7]
[391913645,1760980232303,-64.97626602,0.0003309,7]
[391913646,1760980232312,-542.91921237,0.00033151,30]
[391913648,1760980232322,-273.52,0.00033165,2]
[391913649,1760980232332,-860.0,0.00033182,2]
[391913650,1760980232342,-960.89,0.00033212,2]
[391913651,1760980232351,-925.48460674,0.00033271,2]
[391913652,1760980232361,-542.91921237,0.00033288,30]
[391913653,1760980232371,-500.0,0.00033366,7]
[391913654,1760980232381,-542.91921237,0.00033425,30]
[391913655,1760980232391,-287.61899177,0.0003345,2]
[391913656,1760980232401,-500.0,0.00033461,7]
[391913657,1760980232411,-500.0,0.00033465,8]
[391913658,1760980232422,-500.0,0.00033465,8]
[391913659,1760980232435,-500.0,0.00033465,8]
[391913660,1760980232452,-432.54072011,0.00033465,8]
[391913661,1760980232462,-500.0,0.00033465,8]
[391913662,1760980232471,-500.0,0.00033465,8]
[391913663,1760980232481,-500.0,0.00033465,8]
[391913664,1760980232492,-500.0,0.00033465,8]
[391913665,1760980232502,-500.0,0.00033465,8]
[391913666,1760980232513,-500.0,0.00033499,7]
[391913667,1760980232524,-289.31330778,0.00033499,7]
[391913668,1760980232534,-163.42277425,0.000335,120]
[391913669,1760980232544,-618.60867064,0.000335,120]
[391913670,1760980232554,-5796.51637047,0.000335,120]
[391913671,1760980232564,-475.11,0.00033501,2]
[391913672,1760980232574,-475.11,0.00033501,2]
[391913673,1760980232584,-472.32,0.00033501,2]
[391913674,1760980232594,-196.57851274,0.00033505,2]
[391913675,1760980232604,-2049.0,0.00033526,2]
[391913676,1760980232614,-3408.0,0.00033526,2]
[391913677,1760980232625,-785.0,0.00033526,2]
[391913678,1760980232638,-1268.0,0.00033526,2]
[391913679,1760980232648,-542.91921237,0.00033562,30]
[391913680,1760980232658,-500.0,0.00033572,7]
[391913681,1760980232668,-862.0,0.00033591,2]
[391913682,1760980232678,-542.00048,0.0003366,2]
[391913683,1760980232687,-542.91921237,0.00033671,30]
[391913684,1760980232697,-225.1,0.00033775,2]
[391913685,1760980232707,-266.19,0.00033775,2]
[391913686,1760980232716,-273.81,0.00033775,2]
[391913687,1760980232726,-547.09,0.00033775,2]
[391913688,1760980232736,-194.57,0.00033775,2]
[391913689,1760980232745,-324.19,0.00033775,2]
[391913690,1760980232755,-546.62,0.00033775,2]
[391913691,1760980232765,-150.0,0.00033775,2]
[391913692,1760980232774,-300.0,0.00033775,2]
[391913693,1760980232784,-176.03,0.00033775,2]
[391913694,1760980232794,-542.91921237,0.00033808,30]
[391913695,1760980232804,-829.00845126,0.00033863,2]
[391913696,1760980232814,-542.91921237,0.00033945,30]
[391913697,1760980232824,-2407.28844846,0.00033948,2]
[391913698,1760980232838,-2407.28844841,0.00033976,2]
[391913699,1760980232848,-2115.63674772,0.00033996,2]
[391913700,1760980232858,-39471.0473537,0.00033996,2]
[391913701,1760980232868,-434.4844535,0.00033996,2]
[391913702,1760980232878,-16764.356534,0.00033996,2]
[391913703,1760980232888,-3055.7907146,0.00033996,2]
[391913704,1760980232898,-3588.9447843,0.00033996,2]
[391913705,1760980232908,-62556.4939169,0.00034,2]
[391913711,1760980237497,-5892.46998062,0.00034,2]
[391913717,1760980237603,-822.08596334,0.00034,2]
[391913718,1760980237658,-762.0,0.00034,2]
[391913719,1760980237713,-987.16969031,0.00034,2]
[391913720,1760980237768,-1618.33999949,0.00034,2]
[391913722,1760980237780,-3763.55298483,0.00034,2]
[391913884,1760980239553,-29838.82656983,0.00034,2]
[391913885,1760980239565,-2110.9738766,0.00034,2]
[391913886,1760980239576,-492.65507974,0.00034,2]
[391913887,1760980239606,-2759.99999901,0.00034,2]
[391913888,1760980239661,-555.45,0.00034,2]
[391913889,1760980239672,-3332.7,0.00034,2]
[391913890,1760980239718,-402118.45206126,0.00034,2]
[391913891,1760980239728,-1233.02,0.00034,34]
[391913892,1760980239737,-2407.28844841,0.00034004,2]
[391913893,1760980239747,-1948.86713481,0.0003401,2]
[391913894,1760980239756,-500.0,0.00034018,7]
[391913895,1760980239766,-200.0,0.00034027,10]
[391913896,1760980239775,-2407.28844841,0.00034033,2]
[391913897,1760980239784,-7852.93080449,0.00034039,30]
[391913898,1760980239794,-500.0,0.00034039,7]
[391913899,1760980239803,-166.29,0.00034049,2]
[391913900,1760980239812,-2407.28844841,0.00034061,2]
[391913901,1760980239821,-542.91921237,0.00034082,30]
[391913902,1760980239830,-166.66,0.00034084,30]
[391913903,1760980239840,-2407.28844841,0.00034089,2]
[391913904,1760980239849,-228.0,0.00034099,2]
[391913905,1760980239859,-2407.28844841,0.00034117,2]
[391913906,1760980239869,-2407.28844841,0.00034146,2]
[391913907,1760980239879,-1000.0,0.00034146,2]
[391913908,1760980239889,-222.0,0.00034157,7]
[391913909,1760980239899,-500.0,0.00034167,7]
[391913910,1760980239908,-2407.28844841,0.00034174,2]
[391913911,1760980239917,-1000.0,0.00034174,2]
[391913912,1760980239927,-722.3554358,0.00034181,2]
[391913913,1760980239937,-578.38369988,0.00034181,6]
[391913914,1760980239946,-5000.0,0.00034181,2]
[391913915,1760980239955,-722.3554358,0.00034183,2]
[391913916,1760980239965,-722.3554358,0.00034186,2]
[391913917,1760980239975,-722.3554358,0.00034188,2]
[391913918,1760980239984,-722.3554358,0.0003419,2]
[391913919,1760980239994,-1000.0,0.00034191,2]
[391913920,1760980240003,-562.64224927,0.00034191,2]
[391913922,1760980240013,-1204.86,0.00034191,8]
[391913923,1760980240022,-33116.6448,0.00034192,2]
[391913925,1760980240031,-84802.2094,0.00034192,2]
[391913927,1760980240040,-189.84531788,0.00034192,2]
[391913929,1760980240050,-184.05533709,0.00034192,2]
[391913931,1760980240059,-722.3554358,0.00034193,2]
[391913933,1760980240068,-722.3554358,0.00034195,2]
[391913935,1760980240078,-722.3554358,0.00034197,2]
[391913937,1760980240087,-722.3554358,0.000342,2]
[391913938,1760980240097,-358.25216765,0.00034202,30]
[391913939,1760980240107,-358.25216765,0.00034202,30]
[391913940,1760980240116,-358.25216765,0.00034202,30]
[391913941,1760980240126,-358.25216765,0.00034202,30]
[391913942,1760980240136,-358.25216765,0.00034202,30]
[391913943,1760980240146,-358.25216765,0.00034202,30]
[391913944,1760980240156,-358.25216765,0.00034202,30]
[391913945,1760980240166,-358.25216765,0.00034202,30]
[391913946,1760980240175,-358.25216765,0.00034202,30]
[391913947,1760980240184,-358.25216765,0.00034202,30]
[391913948,1760980240193,-358.25216765,0.00034202,30]
[391913949,1760980240203,-358.25216765,0.00034202,30]
[391913950,1760980240212,-358.25216765,0.00034202,30]
[391913951,1760980240222,-358.25216765,0.00034202,30]
[391913952,1760980240231,-358.25216765,0.00034202,30]
[391913953,1760980240241,-358.25216765,0.00034202,30]
[391913954,1760980240250,-358.25216765,0.00034202,30]
[391913955,1760980240259,-358.25216765,0.00034202,30]
[391913956,1760980240269,-358.25216765,0.00034202,30]
[391913957,1760980240278,-358.25,0.00034202,30]
[391913958,1760980240288,-722.3554358,0.00034202,2]
[391913959,1760980240298,-166.50219605,0.00034202,2]
[391913960,1760980240307,-2407.28844841,0.00034202,2]
[391913961,1760980240316,-234.98663538,0.00034202,2]
[391913962,1760980240325,-255.22428172,0.00034202,2]
[391913963,1760980240334,-465.98392588,0.00034202,2]
[391913964,1760980240344,-465.98392586,0.00034226,2]
[391913965,1760980240354,-500.0,0.00034246,2]
[391913966,1760980240363,-150.0,0.00034246,2]
[391913967,1760980240502,-150.0,0.00034246,2]
[391913968,1760980240512,-150.0,0.00034246,2]
[391913969,1760980240523,-150.0,0.00034246,2]
[391913970,1760980240533,-150.99026666,0.00034246,2]
[391913971,1760980240543,-150.17523028,0.00034246,2]
[391913972,1760980240553,-150.0,0.00034246,2]
[391913973,1760980240563,-150.0,0.00034246,2]
[391913974,1760980240572,-150.0,0.00034246,2]
[391913975,1760980240582,-150.0,0.00034246,2]
[391913976,1760980240592,-150.0,0.00034246,2]
[391913977,1760980240601,-150.0,0.00034246,2]
[391913978,1760980240610,-150.0,0.00034246,2]
[391913979,1760980240619,-150.0,0.00034246,2]
[391913980,1760980240628,-150.0,0.00034246,2]
[391913981,1760980240637,-150.0,0.00034246,2]
[391913982,1760980240647,-203.8435527,0.00034246,2]
[391913983,1760980240656,-150.0,0.00034246,2]
[391913984,1760980240665,-165.37130028,0.00034246,2]
[391913985,1760980240675,-150.0,0.00034246,2]
[391913986,1760980240685,-150.0,0.00034246,2]
[391913987,1760980240695,-154.21978894,0.00034246,2]
[391913988,1760980240704,-150.0,0.00034246,2]
[391913989,1760980240714,-150.0,0.00034246,2]
[391913990,1760980240723,-250.0,0.00034246,2]
[391913991,1760980240732,-250.0,0.00034246,2]
[391913992,1760980240742,-150.0,0.00034246,2]
[391913993,1760980240752,-465.98392586,0.0003425,2]
[391913994,1760980240761,-1425.0,0.0003426,2]
[391913995,1760980240770,-3862.0,0.00034274,2]
[391913996,1760980240779,-2674.0,0.00034274,2]
[391913997,1760980240789,-5459.12921807,0.00034281,3]
[391913998,1760980240798,-1000.0,0.00034281,2]
[391913999,1760980240807,-1204.86,0.00034281,8]
[391914000,1760980240817,-16377.3876542,0.00034281,3]